fUSD/lending_fUSD_20240602
["ID","MTS","AMOUNT","RATE_DAILY","PERIOD"]
[328379505,1717291851344,289.15409976,0.0003,30]
[328379506,1717291859248,484.351,0.00034858,30]
[328379508,1717291859355,1007.46285598,0.00011511,2]
[328379509,1717291863876,1299.61930636,0.00013299,2]
[328379511,1717291918642,170.33,0.00029808,30]
[328379512,1717291957882,150.0,0.00034858,30]
[328379514,1717291988395,430.18,0.00013471,2]
[328379515,1717292044454,428510.60037303,0.00034858,30]
[328379516,1717292160199,2517.80554827,0.00031921,120]
[328379517,1717292333698,297.6,0.000132,2]
[328379518,1717292453047,170.33,0.00029808,30]
[328379520,1717292692328,9983.07941,0.00031,30]
[328379521,1717292776671,150.0,0.00013579,2]
[328379522,1717292811953,2266.02499344,0.00031921,120]
[328379523,1717292854230,282.72,0.00011939,2]
[328379530,1717292968914,2215.58,0.00013395,2]
[328379540,1717293022585,3074.0,0.00031,30]
[328379555,1717293031616,-4703.76,0.0001364,2]
[328379556,1717293031625,-449.3,0.00013654,2]
[328379557,1717293031635,-250.0,0.00013681,2]
[328379558,1717293031644,-200.0,0.00013699,2]
[328379559,1717293031653,-2751.0,0.00013745,2]
[328379560,1717293031663,-3754.62,0.00013748,2]
[328379561,1717293031672,-200.0,0.00013748,2]
[328379562,1717293031681,-1247.2392,0.000138,2]
[328379563,1717293031691,-995.7964,0.000138,2]
[328379564,1717293031701,-747.3282,0.000138,2]
[328379565,1717293031711,-1000.0,0.000138,2]
[328379566,1717293031720,-173.96483567,0.000138,2]
[328379567,1717293031730,-173.51887107,0.000138,2]
[328379568,1717293031739,-17295.47249326,0.00013815,2]
[328379569,1717293031750,-681.39069848,0.00013815,2]
[328379570,1717293031763,-2456.09841182,0.00013815,2]
[328379571,1717293031775,-3467.03839644,0.00013815,2]
[328379572,1717293031784,-173.51887102,0.0001382,2]
[328379573,1717293031793,-173.96483564,0.00013833,2]
[328379574,1717293031802,-173.51887102,0.0001384,2]
[328379575,1717293031811,-499.99,0.0001386,2]
[328379576,1717293031821,-173.51887102,0.0001386,2]
[328379577,1717293031832,-1568.1476,0.0001386,2]
[328379578,1717293031841,-1568.14761,0.0001386,2]
[328379579,1717293031851,-173.96483564,0.00013867,2]
[328379580,1717293031861,-218.83,0.00013878,2]
[328379581,1717293031871,-173.51887102,0.0001388,2]
[328379582,1717293031880,-500.0,0.00013887,2]
[328379583,1717293031889,-500.0,0.00013888,2]
[328379584,1717293031899,-200.0,0.00013888,2]
[328379585,1717293031911,-30874.97300299,0.000139,2]
[328379586,1717293031924,-7210.56446147,0.000139,2]
[328379587,1717293031937,-292982.32133554,0.000139,2]
[328379588,1717293031948,-4558.0517956,0.000139,2]
[328379589,1717293031960,-173.96483564,0.000139,2]
[328379590,1717293031970,-466.03800896,0.000139,2]
[328379591,1717293031979,-173.51887102,0.000139,2]
[328379592,1717293031989,-198.79366428,0.000139,2]
[328379593,1717293031998,-326.66782447,0.000139,2]
[328379594,1717293032007,-1548.56993039,0.000139,2]
[328379595,1717293032016,-386.81309627,0.00013953,2]
[328379596,1717293032026,-480.25709857,0.00013999,2]
[328379597,1717293032035,-880.30098864,0.00013999,2]
[328379598,1717293032046,-108899.3212116,0.00014,2]
[328379599,1717293032058,-3064.60664569,0.00014,2]
[328379600,1717293032070,-1212.8,0.00014,2]
[328379602,1717293032081,-2522.06617273,0.00014,2]
[328379604,1717293032092,-7384.92556584,0.00014,2]
[328379606,1717293032104,-2748.05976961,0.00014,2]
[328379624,1717293032267,-376.2556118,0.00014,2]
[328379627,1717293032280,-301.90641716,0.00014,2]
[328379629,1717293032290,-9394.66720854,0.00014,2]
[328379632,1717293032314,-2197.83270384,0.00014,2]
[328379634,1717293032325,-1666.21666469,0.00014,2]
[328379637,1717293032338,-741.8811006,0.00014,2]
[328379639,1717293032349,-928.61639221,0.00014,2]
[328379655,1717293037584,-5033.54444002,0.00014,2]
[328379656,1717293037596,-5169.77351889,0.00014,2]
[328379657,1717293037736,-11827.7989975,0.00014,2]
[328379658,1717293037747,-853.08727691,0.00014,2]
[328379659,1717293037759,-2775.3758179,0.00014,2]
[328379670,1717293040481,-258.11,0.00014,2]
[328379671,1717293040493,-1071.144,0.00014,2]
[328379672,1717293040505,-325.8012,0.00014,2]
[328379673,1717293040656,-700.61478689,0.00014,2]
[328379674,1717293040668,-489.47653646,0.00014,2]
[328379675,1717293041674,-1487.92434299,0.00014,2]
[328379676,1717293041686,-387.72733961,0.00014,2]
[328379677,1717293041698,-2389.9458545,0.00014,2]
[328379678,1717293041710,-708.505,0.00014,2]
[328379679,1717293041819,-1277.08883032,0.00014,2]
[328379687,1717293042667,-1198.06126897,0.00014,2]
[328379689,1717293043046,-604.33773141,0.00014,2]
[328379690,1717293043057,-1103.73407752,0.00014,2]
[328379691,1717293043068,-1910.0,0.00014,2]
[328379692,1717293043222,-102320.05546402,0.00014,2]
[328379693,1717293043234,-659.549999,0.00014,2]
[328379695,1717293043457,-824.66971783,0.00014,2]
[328379719,1717293046237,-680.44298611,0.00014,2]
[328379793,1717293060647,296.56451239,0.00013299,2]
[328379794,1717293461904,2039.4224941,0.00031921,120]
[328379795,1717293858950,194.31,0.00029808,30]
[328379797,1717293921393,293.34,0.00013377,2]
[328379798,1717293944823,157.060211,0.00032,90]
[328379799,1717293975019,234.060211,0.00032,92]
[328379800,1717294056323,153.27,0.00031,30]
[328379801,1717294115699,18354.80244688,0.00031921,120]
[328379808,1717294231920,-455.62332393,0.00013787,2]
[328379810,1717294231930,-160.6912159,0.00013788,2]
[328379814,1717294231939,-325.03838081,0.000138,2]
[328379839,1717294232185,-1019.17891919,0.000138,2]
[328379840,1717294232194,-1316.80253712,0.0001386,2]
[328379841,1717294232209,-513.55555288,0.0001386,2]
[328379842,1717294232219,-500.0,0.00013888,2]
[328379843,1717294232229,-200.0,0.00013888,2]
[328379844,1717294232238,-162.43358455,0.000139,2]
[328379845,1717294232247,-6639.67297915,0.000139,2]
[328379846,1717294232265,-4308.39852085,0.000139,2]
[328379847,1717294232274,-160.6912159,0.000139,2]
[328379848,1717294232283,-4178.21414593,0.000139,2]
[328379849,1717294232293,-310.69200596,0.000139,2]
[328379850,1717294232302,-325.6294001,0.000139,2]
[328379851,1717294232311,-1664.974,0.000139,2]
[328379852,1717294232320,-171.69339003,0.000139,2]
[328379853,1717294232329,-514.0,0.00014,2]
[328379854,1717294232338,-320772.69497931,0.00014,2]
[328379855,1717294232349,-2603.71306986,0.00014,2]
[328379856,1717294232363,-779.78744094,0.00014,2]
[328379857,1717294232374,-1534.66086946,0.00014,2]
[328379858,1717294232385,-7052.66868269,0.00014,2]
[328379893,1717294237977,-198.68562411,0.000139,2]
[328379894,1717294237986,-454.86969413,0.00014,2]
[328379895,1717294237998,-712.29463692,0.00014,2]
[328379896,1717294238009,-580.79166872,0.00014,2]
[328379897,1717294238020,-429.75149219,0.00014,2]
[328379898,1717294238249,-770.101539,0.00014,2]
[328379900,1717294238260,-414.0846342,0.00014,2]
[328380099,1717294240884,-2424.84669876,0.00014,2]
[328380100,1717294242408,-31212.5833153,0.00014,2]
[328380103,1717294242419,-2678.67499999,0.00014,2]
[328380105,1717294242430,-7459.13269652,0.00014,2]
[328380106,1717294242442,-266.83594387,0.00014,2]
[328380147,1717294242924,-1039.42856775,0.00014,2]
[328380150,1717294242936,-6111.61424262,0.00014,2]
[328380185,1717294243260,-8325.5,0.00014,2]
[328380187,1717294243272,-2822.97845638,0.00014,2]
[328380189,1717294243283,-325.48527793,0.00014,2]
[328380197,1717294243710,-4396.02103584,0.00014,2]
[328380216,1717294246381,-479.22511062,0.00014,2]
[328380218,1717294246393,-2754.33657749,0.00014,2]
[328380232,1717294448330,287.61,0.00013326,2]
[328380233,1717294540173,181.28,0.00029808,30]
[328380234,1717294850017,222.46,0.00010918,2]
[328380236,1717295063294,-327.55896472,0.00013666,2]
[328380237,1717295063317,-326.69785841,0.00013667,2]
[328380238,1717295063339,-161.32315628,0.0001367,2]
[328380239,1717295063366,-161.32315628,0.0001367,2]
[328380240,1717295063389,-161.32315628,0.0001367,2]
[328380241,1717295063411,-161.32315628,0.0001367,2]
[328380242,1717295063433,-7533.16457366,0.00013686,2]
[328380243,1717295063458,-1584.1323,0.00013687,2]
[328380244,1717295063481,-200.0,0.00013699,2]
[328380245,1717295063506,-2751.0,0.00013699,2]
[328380246,1717295063529,-1770.92,0.00013702,2]
[328380247,1717295063553,-237.83,0.00013777,2]
[328380248,1717295063575,-157.4499,0.000138,2]
[328380249,1717295063602,-500.0,0.00013888,2]
[328380250,1717295063625,-200.0,0.00013888,2]
[328380251,1717295063649,-4719.8674,0.000139,2]
[328380252,1717295063671,-324.85058183,0.000139,2]
[328380253,1717295063694,-3871.53308712,0.000139,2]
[328380254,1717295063719,-3830.02963376,0.000139,2]
[328380255,1717295063741,-250.0,0.0001396,2]
[328380256,1717295063763,-309.14719406,0.00013988,2]
[328380257,1717295063787,-325.77210231,0.00013988,2]
[328380258,1717295063813,-199.17821054,0.00013988,2]
[328380259,1717295063836,-3038.29525464,0.00013988,2]
[328380260,1717295063859,-1142.30397461,0.00013988,2]
[328380261,1717295063883,-186.9713609,0.00013988,2]
[328380262,1717295063908,-264.89453136,0.00013988,2]
[328380263,1717295064091,-2618.62134199,0.00013988,2]
[328380264,1717295064117,-197.96159704,0.00013988,2]
[328380265,1717295064140,-156.41602069,0.00013988,2]
[328380266,1717295064164,-1224.32650727,0.00013988,2]
[328380267,1717295064188,-10620.71215942,0.00013988,2]
[328380268,1717295064210,-485.07282055,0.00013988,2]
[328380271,1717295125631,181.28,0.00029808,30]
[328380272,1717295197555,282.17,0.00012523,2]
[328380273,1717295236148,-496.82510393,0.0001386,2]
[328380274,1717295236815,400.0,0.000133,4]
[328380275,1717295238899,800.0,0.000134,4]
[328380276,1717295241030,1300.0,0.000135,4]
[328380277,1717295243117,1700.0,0.000136,4]
[328380283,1717295432432,-2200.0,0.000137,5]
[328380284,1717295432442,-400.0,0.000138,5]
[328380285,1717295432451,-176.78,0.00013808,2]
[328380286,1717295432460,-279.71738132,0.0001386,2]
[328380287,1717295437182,1440.856,0.00031,30]
[328380289,1717295438158,-944.86272475,0.0001386,2]
[328380290,1717295438168,-1000.0,0.00013865,2]
[328380291,1717295438177,-3209.32943166,0.000139,2]
[328380292,1717295438342,-2532.81256834,0.000139,2]
[328380293,1717295438352,-382.92424194,0.000139,5]
[328380294,1717295438917,-17.07575806,0.000139,5]
[328380295,1717295438927,-171.69338999,0.000139,2]
[328380296,1717295438936,-755.57649978,0.000139,2]
[328380297,1717295438946,-321.92004226,0.000139,2]
[328380298,1717295438955,-470.2598201,0.000139,2]
[328380299,1717295438972,-2110.76223798,0.000139,2]
[328380300,1717295438982,-171.69338999,0.00013981,2]
[328380301,1717295438992,-46.43252828,0.00013988,2]
[328380302,1717295439001,-206.38379893,0.00013988,2]
[328380303,1717295439011,-156.08892722,0.00013988,2]
[328380304,1717295439021,-8956.6391176,0.00013988,2]
[328380305,1717295439036,-2068.86336877,0.00013988,2]
[328380306,1717295439046,-155.30132255,0.00013988,2]
[328380307,1717295439057,-1000.0,0.00013988,2]
[328380308,1717295439068,-693.27488388,0.00013988,2]
[328380309,1717295439078,-1122.73356531,0.00013988,2]
[328380310,1717295439089,-155.63733754,0.00013988,2]
[328380311,1717295439098,-155.72740691,0.00013988,2]
[328380312,1717295439108,-488.20461391,0.00013988,2]
[328380313,1717295439118,-624.43835363,0.00013988,2]
[328380314,1717295439128,-648.93382808,0.00013988,2]
[328380315,1717295439138,-409.32045893,0.00013988,2]
[328380316,1717295439148,-211.75999445,0.00013988,2]
[328380317,1717295439159,-159.06838526,0.00013988,2]
[328380318,1717295439170,-1192.38085472,0.00013988,2]
[328380319,1717295439180,-527.58400025,0.00013988,2]
[328380320,1717295439190,-167.725166,0.00013988,2]
[328380321,1717295439200,-215.57913634,0.00013988,2]
[328380322,1717295439210,-328.96334994,0.00013988,2]
[328380323,1717295439220,-496.82235255,0.00013988,2]
[328380324,1717295439229,-93.76036752,0.00013988,2]
[328380334,1717295443338,-148.33775212,0.00013988,2]
[328380335,1717295443348,-4650.09214955,0.00013989,2]
[328380336,1717295443357,-278.48963232,0.00013989,2]
[328380337,1717295443366,-9729.2373049,0.00013989,2]
[328380338,1717295443375,-12181.20576566,0.00013989,2]
[328380343,1717295445238,-4867.42593509,0.00013989,2]
[328380377,1717295581209,392.44154291,0.00031,120]
[328380378,1717295677693,181.28,0.00029808,30]
[328380379,1717295747363,1746.63,0.00031,30]
[328380381,1717295803088,276.11,0.00012371,2]
[328380382,1717296094881,1343.927054,0.00013572,2]
[328380384,1717296412805,262.3,0.00011665,2]
[328380385,1717296535090,19523.65,0.00013093,2]
[328380390,1717296578509,1179.6,0.00013098,2]
[328380395,1717296593979,200.0,0.00013098,2]
[328380406,1717296632782,-1206.34779858,0.00013608,2]
[328380407,1717296632794,-3862.99713364,0.00013608,2]
[328380408,1717296632804,-250.0,0.00013609,2]
[328380409,1717296632814,-250.0,0.00013647,2]
[328380410,1717296632824,-175.73,0.00013658,2]
[328380411,1717296632834,-2751.0,0.00013699,2]
[328380412,1717296632844,-237.83,0.00013699,2]
[328380413,1717296632855,-500.0,0.00013877,2]
[328380414,1717296632867,-168.62770997,0.000139,2]
[328380415,1717296632878,-4875.06728519,0.000139,2]
[328380416,1717296632889,-321.92004224,0.000139,2]
[328380417,1717296632899,-503.71766652,0.000139,2]
[328380418,1717296632908,-262.3,0.00013929,2]
[328380419,1717296632917,-3113.5695015,0.00013989,2]
[328380420,1717296632929,-6796.65226183,0.00013989,2]
[328380421,1717296632961,-892.30034146,0.00013989,2]
[328380461,1717296638567,-103.99102628,0.00013989,2]
[328380462,1717296638577,-1896.00897372,0.00013989,2]
[328380481,1717296641434,-175.42686018,0.00013989,2]
[328380482,1717296641443,-128.91049185,0.00013989,2]
[328380483,1717296641607,-523.56630992,0.00013989,2]
[328380484,1717296641619,-782.02753823,0.00013989,2]
[328380485,1717296641628,-41753.1026136,0.00013989,2]
[328380486,1717296641637,-4561.551263,0.00013989,2]
[328380487,1717296641647,-258.55513766,0.00013999,2]
[328380488,1717296641656,-562.0,0.00014,2]
[328380489,1717296641664,-19926.50115685,0.00014,2]
[328380490,1717296642637,-10667.51878934,0.00014,2]
[328380491,1717296642649,-1627.6283509,0.00014,2]
[328380492,1717296642810,-1060.64974043,0.00014,2]
[328380493,1717296642821,-2535.6528,0.00014,2]
[328380494,1717296642832,-478.70000222,0.00014,2]
[328380495,1717296642987,-579.50324282,0.00014,2]
[328380496,1717296643000,-309.38730101,0.00014,2]
[328380498,1717296645910,-155.39911701,0.00013999,2]
[328380499,1717296645923,-8246.36195824,0.00014,2]
[328380500,1717296646280,-2151.17464644,0.00014,2]
[328380503,1717296747336,174.76,0.00029808,30]
[328380504,1717296750353,400.41,0.0001324,2]
[328380506,1717296813044,66839.27162028,0.0001324,2]
[328380507,1717296881259,151.005701,0.00031,30]
[328380508,1717296899888,250.0,0.00013064,2]
[328380509,1717296931748,345.7,0.00011146,2]
[328380510,1717296931974,345.7,0.0001341,2]
[328380511,1717296947041,250.0,0.00013064,2]
[328380512,1717296947974,179.49,0.00013064,2]
[328380513,1717296965419,703.82,0.00013064,2]
[328380514,1717296971193,171.51,0.00013162,2]
[328380515,1717296971436,171.51,0.00013333,2]
[328380516,1717296971854,171.51,0.00013505,2]
[328380517,1717297081143,391.01,0.00013043,2]
[328380518,1717297081372,391.01,0.00013046,2]
[328380519,1717297081628,391.01,0.00013049,2]
[328380520,1717297082087,391.01,0.00013053,2]
[328380521,1717297082499,391.01,0.00013056,2]
[328380522,1717297082804,391.01,0.0001306,2]
[328380523,1717297083022,391.01,0.00013063,2]
[328380524,1717297083231,391.01,0.00013067,2]
[328380525,1717297083447,391.01,0.0001307,2]
[328380526,1717297083659,391.01,0.00013073,2]
[328380527,1717297084044,391.01,0.00013077,2]
[328380528,1717297084438,391.01,0.0001308,2]
[328380529,1717297084524,391.01,0.00013084,2]
[328380530,1717297084828,391.01,0.00013087,2]
[328380531,1717297085070,391.01,0.00013091,2]
[328380532,1717297085308,391.01,0.00013094,2]
[328380533,1717297085556,391.01,0.00013097,2]
[328380534,1717297085962,391.01,0.00013101,2]
[328380535,1717297086175,391.01,0.00013104,2]
[328380536,1717297086614,391.01,0.00013108,2]
[328380537,1717297107152,1000.0,0.00013039,2]
[328380538,1717297115999,4835.3,0.00013039,2]
[328380544,1717297198708,250.15,0.00013038,2]
[328380545,1717297219288,177.67,0.00013581,2]
[328380546,1717297231916,4878.97,0.00013033,2]
[328380547,1717297238466,358.78,0.00013033,2]
[328380549,1717297381368,200.0,0.00013033,2]
[328380550,1717297479775,311.13,0.00011127,2]
[328380551,1717297480020,311.13,0.00013391,2]
[328380553,1717297561682,660.35,0.00013045,2]
[328380556,1717297629197,171.51,0.00013141,2]
[328380557,1717297643025,250.0,0.00013065,2]
[328380559,1717297652978,250.0,0.00013065,2]
[328380560,1717297668359,200.0,0.00013065,2]
[328380576,1717297831847,-200.0,0.00013699,2]
[328380580,1717297831857,-177.89,0.00013699,2]
[328380582,1717297831867,-233.91,0.00013699,2]
[328380586,1717297831885,-404.4999995,0.00013699,2]
[328380588,1717297831898,-175.0300005,0.00013699,2]
[328380590,1717297831907,-1106.18,0.00013699,2]
[328380591,1717297831916,-260.27843519,0.0001372,2]
[328380592,1717297831925,-150.0,0.00013799,2]
[328380593,1717297831935,-1392.3417,0.000138,2]
[328380594,1717297831944,-171.51,0.00013826,2]
[328380595,1717297831953,-1369.79733,0.0001386,2]
[328380596,1717297831963,-1018.76006354,0.00013898,2]
[328380597,1717297831972,-30772.25069582,0.00013899,2]
[328380598,1717297831984,-4668.803631,0.00013899,2]
[328380599,1717297831998,-499.99,0.000139,2]
[328380600,1717297832007,-888.1637,0.000139,2]
[328380601,1717297832016,-207.14248839,0.000139,2]
[328380602,1717297832025,-5759.18368764,0.000139,2]
[328380603,1717297832035,-4468.8116781,0.000139,2]
[328380604,1717297832044,-199.60973745,0.000139,2]
[328380605,1717297832054,-1720.68137206,0.000139,2]
[328380606,1717297832065,-335.81177768,0.000139,2]
[328380607,1717297832074,-329.6588164,0.000139,2]
[328380608,1717297832083,-329.0740476,0.000139,2]
[328380609,1717297832093,-470.76650129,0.00013932,2]
[328380610,1717297832102,-1633.52933776,0.00013964,2]
[328380611,1717297832111,-158.19975181,0.00013964,2]
[328380612,1717297832120,-4413.13,0.00013964,2]
[328380613,1717297832129,-153.91,0.00013989,2]
[328380614,1717297832138,-837.15,0.00013989,2]
[328380615,1717297832149,-8283.02940982,0.00013989,2]
[328380616,1717297832160,-31161.12662928,0.00013989,2]
[328380617,1717297832170,-1956.8854323,0.00013989,2]
[328380618,1717297832180,-754.89682392,0.00013989,2]
[328380619,1717297832191,-3606.20437368,0.00013989,2]
[328380620,1717297832201,-225.12828002,0.0001399,2]
[328380621,1717297832210,-158.06,0.0001399,2]
[328380622,1717297832219,-158.06,0.0001399,2]
[328380623,1717297832228,-158.06,0.0001399,2]
[328380624,1717297832238,-158.06,0.0001399,2]
[328380625,1717297832247,-327.7158632,0.00013998,2]
[328380626,1717297832256,-155.49081804,0.00013998,2]
[328380627,1717297832265,-155.20196209,0.00013998,2]
[328380628,1717297832275,-408.36767081,0.00013998,2]
[328380629,1717297832284,-644.39292773,0.00013998,2]
[328380630,1717297832294,-205.21271833,0.00013999,2]
[328380631,1717297832303,-155.99849516,0.00013999,2]
[328380632,1717297832312,-1448.58765918,0.00013999,2]
[328380633,1717297832321,-218.24542176,0.00013999,2]
[328380634,1717297832332,-155.79690065,0.00013999,2]
[328380635,1717297832341,-1065.47621405,0.00013999,2]
[328380636,1717297832350,-155.28529549,0.00013999,2]
[328380637,1717297832359,-511.0,0.00014,2]
[328380638,1717297832369,-377071.85472802,0.00014,2]
[328380639,1717297832381,-704.92261432,0.00014,2]
[328380640,1717297832392,-2332.32978955,0.00014,2]
[328380641,1717297832404,-713.07366266,0.00014,2]
[328380642,1717297832415,-893.59727248,0.00014,2]
[328380643,1717297832426,-1557.28706139,0.00014,2]
[328380644,1717297832438,-347.96815075,0.00014,2]
[328380645,1717297832450,-9380.85,0.00014,2]
[328380646,1717297832462,-1850.72560984,0.00014,2]
[328380649,1717297832474,-5737.5,0.00014,2]
[328380654,1717297832485,-1136.27258101,0.00014,2]
[328380661,1717297832518,-4010.82121495,0.00014,2]
[328380663,1717297832529,-779.28,0.00014,2]
[328380666,1717297832541,-2874.64046281,0.00014,2]
[328380668,1717297832552,-13908.88798086,0.00014,2]
[328380671,1717297832563,-3164.75000067,0.00014,2]
[328380674,1717297832575,-500.77266238,0.00014,2]
[328380678,1717297832586,-6441.85381203,0.00014,2]
[328380682,1717297832597,-174310.0772812,0.00014,2]
[328380684,1717297832609,-9416.862,0.00014,2]
[328380686,1717297832621,-1901.72340631,0.00014,2]
[328380688,1717297832632,-1157.61272561,0.00014,2]
[328380690,1717297832643,-809.73333754,0.00014,2]
[328380692,1717297832655,-672.3424,0.00014,2]
[328380694,1717297832667,-8501.16983801,0.00014,2]
[328380696,1717297832679,-401.61999996,0.00014,2]
[328380699,1717297832689,-580.86539022,0.00014,2]
[328380701,1717297832701,-7250.85575796,0.00014,2]
[328380703,1717297832712,-2102.4993963,0.00014,2]
[328380705,1717297832723,-4144.26708576,0.00014,2]
[328380707,1717297832734,-6646.41226186,0.00014,2]
[328380709,1717297832745,-2380.55745511,0.00014,2]
[328380711,1717297832756,-1966.22875406,0.00014,2]
[328380714,1717297832767,-6438.08321885,0.00014,2]
[328380716,1717297832779,-32420.81169824,0.00014,2]
[328380718,1717297832790,-597.34227907,0.00014,2]
[328380720,1717297832801,-363.76455997,0.00014,2]
[328380722,1717297832812,-671.4860516,0.00014,2]
[328380725,1717297832823,-854.82014811,0.00014,2]
[328380729,1717297832860,-44425.78850659,0.00014,2]
[328380738,1717297837826,-2623.41555,0.00014,2]
[328380742,1717297837837,-313.27,0.00014,2]
[328380752,1717297838104,-1524.53646198,0.00014,2]
[328380753,1717297838115,-286.3073085,0.00014,2]
[328380754,1717297838128,-2268.6866497,0.00014,2]
[328380755,1717297838139,-7969.17193469,0.00014,2]
[328380756,1717297838150,-3386.27530717,0.00014,2]
[328380757,1717297838162,-731.70509038,0.00014,2]
[328380758,1717297838173,-8602.67733,0.00014,2]
[328380759,1717297838184,-1973.84237263,0.00014,2]
[328380760,1717297838196,-27447.11317172,0.00014,2]
[328380761,1717297838207,-405.5782942,0.00014,2]
[328380762,1717297838218,-5142.15034644,0.00014,2]
[328380763,1717297838388,-7214.73959698,0.00014,2]
[328380766,1717297838400,-1070.58,0.00014,2]
[328380768,1717297838411,-1765.0,0.00014,2]
[328380770,1717297838422,-388.46048843,0.00014,2]
[328380772,1717297838435,-19385.1044002,0.00014,2]
[328380774,1717297838447,-7098.9,0.00014,2]
[328380801,1717297840804,-427.45272108,0.00014,2]
[328380804,1717297840816,-299872.92546897,0.00014,2]
[328380826,1717297841084,-64049.15465229,0.00014,2]
[328380827,1717297841096,-746.21384746,0.00014,2]
[328380828,1717297842030,-5961103.55662255,0.00014,2]
[328380829,1717297842042,-1578.71698897,0.00014,2]
[328380830,1717297842054,-954.51740152,0.00014,2]
[328380881,1717297843170,-1482.94436458,0.00014,2]
[328380882,1717297843182,-762.5916934,0.00014,2]
[328380889,1717297845150,496.3878,0.00013599,2]
[328380893,1717297849231,29992.55033895,0.00013065,2]
[328380894,1717297903514,500.0,0.00031,30]
[328380895,1717298041180,314.71,0.00013139,2]
[328380896,1717298501821,-150.0,0.00013899,2]
[328380897,1717298501842,-357.7309,0.000139,2]
[328380898,1717298501862,-3277.5327406,0.000139,2]
[328380899,1717298501884,-229399.0525,0.000139,2]
[328380900,1717298501904,-329.65881639,0.000139,2]
[328380901,1717298501923,-223.87451846,0.000139,2]
[328380902,1717298501944,-1147.1209147,0.000139,2]
[328380903,1717298501965,-85377.519162,0.00013989,2]
[328380904,1717298501985,-4231.0930223,0.00013989,2]
[328380905,1717298502005,-9429.3843377,0.00013989,2]
[328380906,1717298502027,-19448.10237738,0.00013999,2]
[328380907,1717298502051,-1058400.31686763,0.00014,2]
[328380908,1717298502072,-569413.61384284,0.00014,2]
[328380909,1717298609251,298.97,0.00013294,2]
[328380910,1717298838128,-150.0,0.00013799,2]
[328380911,1717298838148,-150.0,0.00013799,2]
[328380912,1717298838168,-196.82793954,0.000138,2]
[328380914,1717299032317,-713.93157596,0.000138,2]
[328380915,1717299032330,-6257.9588845,0.000138,2]
[328380916,1717299032342,-329.65881639,0.000139,2]
[328380917,1717299032353,-3635.4221253,0.0001399,2]
[328380918,1717299032366,-1631.2633611,0.0001399,2]
[328380919,1717299032376,-185153.91996294,0.00014,2]
[328380926,1717299038195,-1004.86485904,0.0001399,2]
[328380927,1717299038391,-31862.25354226,0.0001399,2]
[328380928,1717299038401,-130857.27488267,0.00014,2]
[328380929,1717299038594,-5192.73664175,0.00014,2]
[328380933,1717299042392,-283.47181061,0.00014,2]
[328380956,1717299046265,-626.08111507,0.00014,2]
[328380959,1717299046502,-7269.45860031,0.00014,2]
[328380960,1717299046513,-822.49746217,0.00014,2]
[328380961,1717299046525,-6231.59735195,0.00014,2]
[328380986,1717299216197,415.255222,0.00013553,2]
[328380987,1717299330539,10712.31667316,0.00013,2]
[328380989,1717299683128,314.73,0.00013345,2]
[328380990,1717300061463,-150.0,0.00013799,2]
[328380991,1717300061485,-3219.27596702,0.000138,2]
[328380992,1717300061507,-221.5099,0.000138,2]
[328380993,1717300061530,-258.79435456,0.000138,2]
[328380994,1717300061554,-2500.0,0.000138,2]
[328380995,1717300061577,-44757.02664791,0.0001386,2]
[328380996,1717300061601,-39269.1915,0.000139,2]
[328380997,1717300061624,-26207.6602,0.000139,2]
[328380998,1717300061647,-1000.0,0.000139,2]
[328380999,1717300061669,-102192.85183051,0.000139,2]